fUST/lending_fUST_20251113
["ID","MTS","AMOUNT","RATE_DAILY","PERIOD"]
[393805810,1763013833764,500.83556489,0.0003706,120]
[393805825,1763013993990,263.11,0.00032877,120]
[393805854,1763014083670,207.11,0.00017721,2]
[393805862,1763014173152,-169.44009325,0.00020536,2]
[393805863,1763014173173,-150.0,0.00020568,2]
[393805864,1763014173193,-342.53167752,0.000206,2]
[393805865,1763014173212,-209.40437684,0.00020631,2]
[393805866,1763014173233,-903.0,0.00020642,2]
[393805867,1763014173255,-267.0,0.00020642,2]
[393805868,1763014173274,-300.0,0.00020642,2]
[393805869,1763014173291,-500.0,0.00020643,2]
[393805870,1763014173306,-500.0,0.00020643,2]
[393805871,1763014173323,-465.49335281,0.00020643,2]
[393805872,1763014173344,-3294.28919416,0.00020643,2]
[393805873,1763014173364,-162.333479,0.00020951,2]
[393805874,1763014173383,-217.15233878,0.00021179,2]
[393805875,1763014173403,-225.18697532,0.00021727,2]
[393805876,1763014173424,-233.51889341,0.00022275,2]
[393805877,1763014173444,-420.0,0.00022462,2]
[393805878,1763014173465,-1201.94486742,0.00022506,2]
[393805879,1763014173487,-177.0,0.00022568,2]
[393805880,1763014173513,-1268.32583149,0.0002265,2]
[393805881,1763014187726,294.42584774,0.00031116,120]
[393805904,1763014232372,-209.40437684,0.00020631,2]
[393805906,1763014232381,-217.15233878,0.00021179,2]
[393805907,1763014232391,-213.67216273,0.00021727,2]
[393805909,1763014232402,-11.51481259,0.00021727,2]
[393805910,1763014232411,-643.48518741,0.000222,2]
[393805985,1763014238277,-1026.15150656,0.000222,2]
[393805986,1763014238449,-360.82507419,0.000222,2]
[393805987,1763014238509,-2969.53823184,0.000222,2]
[393805988,1763014238519,-233.51889341,0.00022275,2]
[393805989,1763014238529,-5000.0,0.00022424,2]
[393805990,1763014238539,-2025.96336267,0.0002265,2]
[393805991,1763014238550,-242.15909246,0.00022823,2]
[393805992,1763014238560,-251.11897888,0.00023371,2]
[393805993,1763014238569,-260.4103811,0.00023919,2]
[393805995,1763014238579,-270.0455652,0.00024467,2]
[393805996,1763014238589,-204.0,0.00024568,2]
[393805997,1763014238599,-3294.28919416,0.00024658,2]
[393805998,1763014238608,-421.51667849,0.00024898,2]
[393805999,1763014238618,-280.03725112,0.00025015,2]
[393806000,1763014238628,-290.4,0.00025463,2]
[393806001,1763014238637,-192.84,0.00025463,2]
[393806002,1763014238646,-290.39862941,0.00025563,2]
[393806003,1763014238656,-300.0,0.00025695,2]
[393806004,1763014238666,-301.1433787,0.00026111,2]
[393806005,1763014238675,-231.0,0.00026568,2]
[393806006,1763014238684,-3294.28919416,0.00026666,2]
[393806007,1763014238695,-420.0,0.00027816,2]
[393806008,1763014238705,-162.333479,0.00028203,2]
[393806009,1763014238714,-190.67213362,0.00028568,2]
[393806010,1763014238724,-3294.28919416,0.00028674,2]
[393806011,1763014238733,-160.0,0.000287,2]
[393806012,1763014238743,-260.0,0.00029248,2]
[393806013,1763014238753,-360.0,0.00029796,2]
[393806014,1763014238762,-390.0,0.00030113,2]
[393806015,1763014238772,-576.6516034,0.00030344,2]
[393806016,1763014238782,-173.216,0.00030389,26]
[393806017,1763014238791,-3294.28919416,0.00030682,2]
[393806018,1763014238801,-433.00577548,0.00030799,2]
[393806019,1763014238811,-327.34568535,0.00030799,2]
[393806020,1763014238821,-500.0,0.00030799,2]
[393806021,1763014238831,-462.10908907,0.00030799,2]
[393806026,1763014240618,-3e-08,0.00030799,2]
[393806030,1763014243622,-37.8909109,0.00030799,2]
[393806031,1763014243632,-477.89338069,0.00030799,2]
[393806037,1763014243799,-500.0,0.00030799,2]
[393806040,1763014243820,-500.0,0.00030799,2]
[393806042,1763014243830,-500.0,0.00030799,2]
[393806044,1763014243839,-591.11271563,0.00030799,2]
[393806046,1763014243848,-500.0,0.00030799,2]
[393806048,1763014243858,-150.0,0.00030801,2]
[393806050,1763014243867,-500.0,0.00031116,60]
[393806052,1763014243876,-163.34800068,0.00031289,2]
[393806054,1763014243885,-176.79115511,0.00031959,4]
[393806056,1763014243894,-707.16462042,0.00031959,4]
[393806058,1763014243903,-282.20713404,0.00031959,4]
[393806060,1763014243913,-1128.82853614,0.00031959,4]
[393806062,1763014243923,-2480.14159388,0.00032515,2]
[393806064,1763014243932,-151.0,0.00032683,4]
[393806066,1763014243941,-500.0,0.00032683,4]
[393806068,1763014243952,-151.0,0.00032683,4]
[393806070,1763014243963,-3294.28919416,0.0003269,2]
[393806072,1763014243975,-500.0,0.00032728,4]
[393806074,1763014243984,-153.59888971,0.00032729,4]
[393806076,1763014243993,-151.0,0.00032738,4]
[393806078,1763014244003,-500.0,0.00032738,4]
[393806080,1763014244013,-151.0,0.00032738,4]
[393806082,1763014244023,-151.0,0.00032793,4]
[393806084,1763014244032,-222.7046229,0.00032793,4]
[393806086,1763014244043,-151.0,0.00032793,4]
[393806087,1763014244053,-151.0,0.00032847,4]
[393806088,1763014244061,-151.0,0.00032847,4]
[393806089,1763014244070,-716.90467061,0.0003288,120]
[393806090,1763014244079,-151.0,0.00032896,2]
[393806091,1763014244088,-151.0,0.00032896,2]
[393806092,1763014244097,-151.0,0.00032896,2]
[393806093,1763014244107,-151.0,0.00032896,2]
[393806094,1763014244116,-151.0,0.00032896,2]
[393806095,1763014244126,-151.0,0.00032896,2]
[393806096,1763014244135,-151.0,0.00032896,2]
[393806097,1763014244144,-151.0,0.00032896,2]
[393806098,1763014244153,-151.0,0.00032896,2]
[393806099,1763014244163,-151.0,0.00032896,2]
[393806100,1763014244172,-162.72459616,0.00032896,2]
[393806101,1763014244183,-214.06813016,0.000329,120]
[393806102,1763014244194,-264.02545503,0.00032902,4]
[393806103,1763014244204,-151.0,0.00032902,4]
[393806104,1763014244215,-183.60246309,0.00032957,4]
[393806105,1763014244224,-500.0,0.00033002,4]
[393806106,1763014244235,-348.0,0.00033267,2]
[393806107,1763014244244,-500.0,0.00033276,4]
[393806108,1763014244255,-205.0,0.00033347,2]
[393806109,1763014244265,-500.0,0.0003355,4]
[393806110,1763014244274,-205.0,0.0003368,2]
[393806111,1763014244283,-205.0,0.0003378,2]
[393806112,1763014244294,-491.63051284,0.00033824,4]
[393806113,1763014244307,-539.0,0.00034,2]
[393806114,1763014244317,-205.0,0.00034017,7]
[393806115,1763014244327,-2223.69224154,0.00034058,2]
[393806116,1763014244336,-205.0,0.00034088,2]
[393806117,1763014244346,-500.0,0.00034184,60]
[393806118,1763014244360,-205.0,0.00034215,2]
[393806119,1763014244375,-304.56667991,0.00034296,2]
[393806120,1763014244385,-150.5,0.00034324,120]
[393806121,1763014244394,-442.15135573,0.00034326,2]
[393806122,1763014244403,-941.21,0.00034334,10]
[393806123,1763014244413,-500.0,0.00034343,7]
[393806124,1763014244423,-500.0,0.00034343,7]
[393806125,1763014244432,-569.59512005,0.00034343,7]
[393806126,1763014244441,-500.0,0.00034343,7]
[393806127,1763014244450,-500.0,0.00034343,7]
[393806128,1763014244460,-628.72457932,0.00034343,7]
[393806129,1763014244471,-500.0,0.00034343,7]
[393806130,1763014244481,-500.0,0.00034343,7]
[393806131,1763014244490,-151.0,0.00034344,31]
[393806132,1763014244499,-151.0,0.00034344,31]
[393806133,1763014244509,-151.0,0.00034344,31]
[393806134,1763014244519,-151.0,0.00034344,31]
[393806135,1763014244528,-298.920515,0.00034344,31]
[393806136,1763014244537,-500.0,0.00034344,60]
[393806137,1763014244547,-500.0,0.00034344,60]
[393806138,1763014244557,-152.269097,0.00034344,31]
[393806139,1763014244568,-500.0,0.00034344,60]
[393806140,1763014244578,-500.0,0.00034344,60]
[393806141,1763014244588,-500.0,0.00034344,60]
[393806142,1763014244598,-500.0,0.00034344,60]
[393806143,1763014244607,-419.35303774,0.00034344,60]
[393806144,1763014244617,-500.0,0.00034344,60]
[393806145,1763014244627,-500.0,0.00034344,60]
[393806146,1763014244636,-445.26651075,0.00034344,60]
[393806147,1763014244645,-151.0,0.00034344,31]
[393806148,1763014244654,-162.22129,0.00034344,31]
[393806149,1763014244664,-151.0,0.00034344,31]
[393806150,1763014244673,-288.680322,0.00034344,31]
[393806151,1763014244689,-151.0,0.00034344,31]
[393806152,1763014244700,-151.0,0.00034344,31]
[393806153,1763014244712,-151.0,0.00034344,31]
[393806154,1763014244722,-151.0,0.00034344,31]
[393806155,1763014244732,-151.0,0.00034344,31]
[393806156,1763014244742,-151.0,0.00034344,31]
[393806157,1763014244754,-151.0,0.00034344,31]
[393806158,1763014244764,-151.0,0.00034344,31]
[393806159,1763014244775,-151.0,0.00034344,31]
[393806160,1763014244785,-151.0,0.00034344,31]
[393806161,1763014244795,-151.0,0.00034344,31]
[393806162,1763014244805,-151.0,0.00034344,31]
[393806163,1763014244815,-176.122525,0.00034344,31]
[393806164,1763014244825,-8376.0,0.00034344,2]
[393806165,1763014244836,-8376.0,0.00034344,2]
[393806166,1763014244847,-8376.0,0.00034344,2]
[393806167,1763014244856,-8376.0,0.00034344,2]
[393806168,1763014244866,-8376.0,0.00034344,2]
[393806169,1763014244876,-8376.0,0.00034344,2]
[393806170,1763014244886,-8376.0,0.00034344,2]
[393806171,1763014244897,-8376.0,0.00034344,2]
[393806172,1763014244906,-8376.0,0.00034344,2]
[393806173,1763014244915,-8376.0,0.00034344,2]
[393806174,1763014244926,-8376.0,0.00034344,2]
[393806175,1763014244935,-8376.0,0.00034344,2]
[393806176,1763014244944,-8376.0,0.00034344,2]
[393806177,1763014244953,-8376.0,0.00034344,2]
[393806178,1763014244968,-8376.0,0.00034344,2]
[393806179,1763014244978,-8376.0,0.00034344,2]
[393806180,1763014244987,-8376.0,0.00034344,2]
[393806181,1763014244996,-151.0,0.00034344,31]
[393806182,1763014245008,-151.0,0.00034344,31]
[393806183,1763014245018,-151.0,0.00034344,31]
[393806184,1763014245027,-151.0,0.00034344,31]
[393806185,1763014245037,-151.0,0.00034344,31]
[393806186,1763014245048,-151.0,0.00034344,31]
[393806187,1763014245058,-151.0,0.00034344,31]
[393806188,1763014245068,-151.0,0.00034344,31]
[393806189,1763014245079,-151.0,0.00034344,31]
[393806190,1763014245090,-244.894274,0.00034344,31]
[393806191,1763014245101,-232.003458,0.00034344,28]
[393806192,1763014245110,-232.003458,0.00034344,28]
[393806193,1763014245119,-232.003458,0.00034344,28]
[393806194,1763014245129,-232.003458,0.00034344,28]
[393806195,1763014245138,-232.003458,0.00034344,28]
[393806196,1763014245149,-232.003458,0.00034344,28]
[393806197,1763014245158,-232.003458,0.00034344,28]
[393806198,1763014245168,-232.003458,0.00034344,28]
[393806199,1763014245176,-232.003458,0.00034344,28]
[393806200,1763014245185,-232.003458,0.00034344,28]
[393806201,1763014245195,-232.003458,0.00034344,28]
[393806202,1763014245204,-232.003458,0.00034344,28]
[393806203,1763014245213,-232.003458,0.00034344,28]
[393806204,1763014245223,-232.003458,0.00034344,28]
[393806205,1763014245232,-232.003458,0.00034344,28]
[393806206,1763014245241,-232.003458,0.00034344,28]
[393806207,1763014245250,-232.003458,0.00034344,28]
[393806208,1763014245260,-232.003458,0.00034344,28]
[393806209,1763014245269,-232.003458,0.00034344,28]
[393806210,1763014245279,-232.003458,0.00034344,28]
[393806211,1763014245290,-151.0,0.00034344,31]
[393806212,1763014245299,-197.827452,0.00034344,31]
[393806213,1763014245309,-261.365858,0.00034344,31]
[393806214,1763014245318,-299.298062,0.00034344,31]
[393806215,1763014245328,-164.288679,0.00034344,31]
[393806216,1763014245338,-151.0,0.00034344,31]
[393806217,1763014245347,-151.0,0.00034344,31]
[393806218,1763014245357,-151.0,0.00034344,31]
[393806219,1763014245366,-151.0,0.00034344,31]
[393806220,1763014245375,-151.0,0.00034344,31]
[393806221,1763014245385,-151.0,0.00034344,31]
[393806222,1763014245394,-151.0,0.00034344,31]
[393806223,1763014245403,-151.0,0.00034344,31]
[393806224,1763014245412,-151.0,0.00034344,31]
[393806225,1763014245422,-151.0,0.00034344,31]
[393806226,1763014245431,-151.0,0.00034344,31]
[393806227,1763014245441,-151.0,0.00034344,31]
[393806228,1763014245450,-151.0,0.00034344,31]
[393806229,1763014245460,-207.565212,0.00034344,31]
[393806230,1763014245469,-4114.182421,0.00034344,31]
[393806231,1763014245479,-4114.182421,0.00034344,31]
[393806232,1763014245489,-4114.182421,0.00034344,31]
[393806233,1763014245499,-4114.182421,0.00034344,31]
[393806234,1763014245508,-4114.182421,0.00034344,31]
[393806235,1763014245518,-4114.182421,0.00034344,31]
[393806236,1763014245528,-4114.182421,0.00034344,31]
[393806237,1763014245537,-4114.182421,0.00034344,31]
[393806238,1763014245547,-4114.182421,0.00034344,31]
[393806239,1763014245556,-4114.182421,0.00034344,31]
[393806240,1763014245566,-4114.182421,0.00034344,31]
[393806241,1763014245576,-4114.182421,0.00034344,31]
[393806242,1763014245585,-4114.182421,0.00034344,31]
[393806243,1763014245594,-4114.182421,0.00034344,31]
[393806244,1763014245604,-4114.182421,0.00034344,31]
[393806245,1763014245613,-4114.182421,0.00034344,31]
[393806246,1763014245622,-4114.182421,0.00034344,31]
[393806247,1763014245631,-4114.182421,0.00034344,31]
[393806248,1763014245640,-4114.182421,0.00034344,31]
[393806249,1763014245649,-4114.18242136,0.00034344,31]
[393806250,1763014245659,-500.0,0.00034345,30]
[393806251,1763014245668,-155.104234,0.00034345,31]
[393806252,1763014245677,-151.0,0.00034345,31]
[393806253,1763014245687,-153.531701,0.00034345,7]
[393806254,1763014245696,-152.975507,0.00034345,31]
[393806255,1763014245705,-151.0,0.00034345,31]
[393806256,1763014245714,-152.158116,0.00034345,31]
[393806257,1763014245723,-151.0,0.00034345,31]
[393806258,1763014245734,-158.21802,0.00034345,31]
[393806259,1763014245743,-215.70752208,0.00034373,5]
[393806260,1763014245753,-500.0,0.00034373,5]
[393806261,1763014245764,-532.45677622,0.00034373,5]
[393806262,1763014245774,-500.0,0.00034373,5]
[393806263,1763014245784,-500.0,0.00034373,5]
[393806264,1763014245794,-504.98494652,0.00034373,5]
[393806265,1763014245804,-501.83948246,0.00034373,5]
[393806266,1763014245814,-500.0,0.00034373,5]
[393806267,1763014245824,-500.0,0.00034373,5]
[393806268,1763014245833,-500.0,0.00034373,5]
[393806269,1763014245844,-503.01732851,0.00034373,5]
[393806270,1763014245854,-422.39679512,0.00034373,5]
[393806271,1763014245865,-500.0,0.00034373,2]
[393806272,1763014245875,-500.0,0.00034373,5]
[393806273,1763014245885,-500.0,0.00034373,5]
[393806275,1763014245894,-505.04942401,0.00034373,5]
[393806276,1763014245904,-500.0,0.00034373,5]
[393806277,1763014245914,-504.45011313,0.00034373,3]
[393806278,1763014245924,-505.79914079,0.00034373,5]
[393806279,1763014245934,-520.86953683,0.00034373,5]
[393806280,1763014245944,-500.0,0.00034373,5]
[393806281,1763014245954,-563.5218069,0.00034426,2]
[393806282,1763014245965,-499.74179986,0.00034426,2]
[393806283,1763014245977,-899.53523974,0.00034426,2]
[393806285,1763014245987,-8376.0,0.00034426,2]
[393806286,1763014245995,-151.0,0.00034427,2]
[393806287,1763014246005,-151.0,0.00034427,2]
[393806288,1763014246016,-151.0,0.00034427,2]
[393806289,1763014246025,-151.0,0.00034427,2]
[393806290,1763014246034,-151.0,0.00034427,2]
[393806291,1763014246044,-151.0,0.00034427,2]
[393806292,1763014246053,-8376.0,0.00034435,2]
[393806293,1763014246062,-8376.0,0.00034436,2]
[393806294,1763014246072,-8376.0,0.00034436,2]
[393806295,1763014246081,-8376.0,0.00034436,2]
[393806296,1763014246090,-8376.0,0.00034436,2]
[393806297,1763014246099,-8376.08473151,0.00034436,2]
[393806298,1763014246109,-151.0,0.00034437,31]
[393806300,1763014246118,-500.0,0.00034444,60]
[393806302,1763014246127,-500.0,0.00034444,60]
[393806303,1763014246136,-500.0,0.00034444,60]
[393806304,1763014246145,-173.766386,0.00034444,31]
[393806305,1763014246154,-276.3912882,0.00034444,60]
[393806306,1763014246163,-152.471477,0.00034445,31]
[393806307,1763014246173,-152.361453,0.00034445,31]
[393806308,1763014246182,-152.697008,0.00034445,31]
[393806309,1763014246192,-500.0,0.00034445,60]
[393806310,1763014246202,-500.0,0.00034445,60]
[393806311,1763014246211,-500.0,0.00034445,60]
[393806312,1763014246221,-151.0,0.00034445,31]
[393806313,1763014246231,-156.696299,0.00034445,31]
[393806314,1763014246239,-500.0,0.00034446,60]
[393806315,1763014246249,-500.0,0.00034446,60]
[393806316,1763014246259,-500.0,0.00034446,60]
[393806318,1763014246268,-526.71872081,0.00034446,60]
[393806319,1763014246277,-503.93469828,0.00034473,5]
[393806320,1763014246287,-500.0,0.00034473,5]
[393806321,1763014246296,-634.03232837,0.00034473,5]
[393806322,1763014246305,-500.0,0.00034473,5]
[393806323,1763014246314,-504.64625103,0.00034473,5]
[393806324,1763014246323,-500.0,0.00034473,5]
[393806325,1763014246333,-500.0,0.00034473,5]
[393806326,1763014246343,-501.23676638,0.00034473,5]
[393806327,1763014246351,-500.0,0.00034473,5]
[393806328,1763014246361,-199.01412206,0.00034482,2]
[393806329,1763014246370,-200.56032654,0.00034482,2]
[393806330,1763014246380,-151.0,0.00034482,2]
[393806331,1763014246390,-199.42538137,0.00034482,2]
[393806332,1763014246399,-151.0,0.00034482,2]
[393806333,1763014246409,-236.40508137,0.00034482,2]
[393806334,1763014246419,-283.72004059,0.00034537,2]
[393806335,1763014246428,-198.48816271,0.00034537,2]
[393806336,1763014246438,-500.0,0.00034619,30]
[393806337,1763014246447,-3294.28919416,0.00034698,2]
[393806338,1763014246456,-150.5,0.00034737,120]
[393806339,1763014246465,-205.0,0.00034739,7]
[393806340,1763014246475,-300.0,0.00034785,30]
[393806341,1763014246485,-152.92,0.000348,7]
[393806343,1763014246495,-205.0,0.00034885,2]
[393806344,1763014246504,-500.0,0.00034893,30]
[393806346,1763014246515,-1000.0,0.00034921,5]
[393806347,1763014246524,-504.16917821,0.00034921,5]
[393806348,1763014246533,-1005.96645197,0.00034921,5]
[393806350,1763014246673,-506.51910701,0.00034921,5]
[393806351,1763014246683,-502.08351042,0.00034921,5]
[393806352,1763014246693,-504.66192119,0.00034921,5]
[393806353,1763014246703,-508.60763948,0.00034921,2]
[393806354,1763014246712,-506.735317,0.00034921,5]
[393806355,1763014246722,-1004.07790737,0.00034921,5]
[393806356,1763014246731,-1000.0,0.00034921,5]
[393806357,1763014246740,-1000.0,0.00034921,5]
[393806358,1763014246750,-159.476094,0.00034932,2]
[393806359,1763014246760,-205.0,0.00034943,2]
[393806360,1763014246769,-205.0,0.0003497,2]
[393806361,1763014246778,-925.08,0.00035,14]
[393806362,1763014246787,-4449.87,0.00035,14]
[393806363,1763014246797,-171.82025,0.00035,90]
[393806364,1763014246806,-1000.0,0.00035021,5]
[393806365,1763014246815,-509.26830409,0.00035021,5]
[393806366,1763014246825,-503.88181205,0.00035021,5]
[393806367,1763014246834,-1000.0,0.00035021,5]
[393806368,1763014246844,-1025.85354512,0.00035021,5]
[393806369,1763014246854,-504.39951886,0.00035035,5]
[393806370,1763014246863,-500.0,0.00035035,5]
[393806371,1763014246872,-500.0,0.00035035,5]
[393806372,1763014246881,-159.476094,0.00035076,2]
[393806373,1763014246891,-500.0,0.00035167,30]
[393806374,1763014246899,-224.07203703,0.00035244,2]
[393806375,1763014246908,-205.0,0.00035381,7]
[393806376,1763014246917,-300.0,0.00035431,30]
[393806377,1763014246928,-500.0,0.00035441,30]
[393806378,1763014246937,-600.0,0.00035441,30]
[393806379,1763014246946,-162.333479,0.00035455,2]
[393806380,1763014246956,-1500.0,0.00035468,5]
[393806381,1763014246966,-528.07445518,0.00035468,5]
[393806382,1763014246978,-1050.80869383,0.00035468,5]
[393806383,1763014246988,-633.21,0.00035522,2]
[393806384,1763014246997,-991.572,0.00035522,2]
[393806385,1763014247006,-2168.0,0.00035522,2]
[393806386,1763014247018,-430.48093592,0.00035568,5]
[393806387,1763014247027,-1208.37028292,0.00035568,5]
[393806388,1763014247036,-423.63695189,0.00035583,5]
[393806389,1763014247046,-1000.0,0.00035583,5]
[393806390,1763014247056,-254.3,0.00035616,2]
[393806391,1763014247065,-500.0,0.0003563,5]
[393806392,1763014247074,-501.81206718,0.0003563,5]
[393806393,1763014247084,-500.0,0.00035715,30]
[393806394,1763014247094,-205.0,0.00035791,7]
[393806395,1763014247104,-1597.57458578,0.00035791,2]
[393806396,1763014247113,-500.0,0.00035989,30]
[393806397,1763014247123,-1991.33082309,0.00036016,5]
[393806398,1763014247134,-159.476094,0.0003604,60]
[393806399,1763014247144,-500.0,0.0003606,5]
[393806400,1763014247154,-500.0,0.0003606,5]
[393806401,1763014247163,-504.42252915,0.0003606,5]
[393806402,1763014247172,-151.31406613,0.00036131,5]
[393806403,1763014247182,-892.82806806,0.00036178,5]
[393806404,1763014247192,-207.0,0.00036181,7]
[393806405,1763014247201,-207.0,0.00036229,2]
[393806406,1763014247211,-500.0,0.00036263,30]
[393806407,1763014247220,-205.0,0.0003628,2]
[393806408,1763014247230,-250.0,0.00036329,3]
[393806409,1763014247239,-159.476094,0.00036356,31]
[393806410,1763014247249,-205.0,0.00036525,2]
[393806411,1763014247259,-500.0,0.00036537,30]
[393806412,1763014247268,-1000.81472905,0.00036579,2]
[393806413,1763014247278,-205.0,0.00036593,2]
[393806414,1763014247287,-181.8809072,0.000366,120]
[393806415,1763014247297,-1004.5997775,0.00036608,5]
[393806416,1763014247306,-500.0,0.00036608,5]
[393806417,1763014247315,-205.0,0.00036669,7]
[393806418,1763014247325,-3294.28919416,0.00036706,2]
[393806419,1763014247334,-205.0,0.00036718,2]
[393806420,1763014247343,-800.0,0.00036753,7]
[393806421,1763014247353,-303.29771588,0.000368,120]
[393806422,1763014247362,-500.0,0.00036811,30]
[393806423,1763014247371,-776.04827824,0.00036812,7]
[393806424,1763014247381,-1060.36975501,0.0003686,2]
[393806425,1763014247390,-800.0,0.00036883,7]
[393806426,1763014247399,-326.071243,0.00036898,2]
[393806427,1763014247409,-152.02285994,0.00036973,5]
[393806428,1763014247418,-504.22605727,0.00036973,5]
[393806429,1763014247428,-300.55067029,0.00036973,5]
[393806430,1763014247438,-520.66887014,0.00036973,5]
[393806431,1763014247448,-504.22239105,0.00036973,5]
[393806432,1763014247458,-501.25751545,0.00036973,5]
[393806433,1763014247468,-500.8192034,0.00036973,5]
[393806434,1763014247477,-800.0,0.00036976,7]
[393806435,1763014247487,-151.96576591,0.00036986,2]
[393806436,1763014247496,-596.8741947,0.00036988,30]
[393806437,1763014247505,-4000.0,0.00036993,20]
[393806438,1763014247515,-4000.0,0.00036993,20]
[393806439,1763014247524,-4000.0,0.00036993,20]
[393806440,1763014247534,-4000.0,0.00036993,20]
[393806441,1763014247543,-4000.0,0.00036993,20]
[393806442,1763014247552,-4000.0,0.00036993,20]
[393806443,1763014247562,-4000.0,0.00036993,20]
[393806444,1763014247571,-4000.0,0.00036993,20]
[393806445,1763014247582,-4000.0,0.00036993,20]
[393806446,1763014247592,-4000.0,0.00036993,20]
[393806447,1763014247601,-4000.0,0.00036993,20]
[393806448,1763014247611,-4000.0,0.00036993,20]
[393806449,1763014247621,-4000.0,0.00036993,20]
[393806450,1763014247630,-4000.0,0.00036993,20]
[393806451,1763014247639,-4000.0,0.00036993,20]
[393806452,1763014247648,-4000.0,0.00036993,20]
[393806453,1763014247659,-4000.0,0.00036993,20]
[393806454,1763014247668,-4000.0,0.00036993,20]
[393806455,1763014247678,-4000.0,0.00036993,20]
[393806456,1763014247687,-4000.0,0.00036993,20]
[393806457,1763014247696,-3178.30157815,0.00036993,20]
[393806458,1763014247706,-151.0,0.00036995,14]
[393806459,1763014247717,-151.0,0.00036995,14]
[393806460,1763014247727,-151.0,0.00036995,14]
[393806461,1763014247736,-151.0,0.00036995,14]
[393806462,1763014247745,-2036.60048023,0.00037,2]
[393806463,1763014247755,-4228.0846083,0.00037,120]
[393806464,1763014247764,-400.28388004,0.00037,7]
[393806465,1763014247773,-1007.501589,0.00037,23]
[393806466,1763014247784,-1000.0,0.00037014,20]
[393806467,1763014247793,-1000.0,0.00037014,20]
[393806468,1763014247803,-1000.0,0.00037014,20]
[393806469,1763014247812,-1000.0,0.00037014,20]
[393806470,1763014247823,-1000.0,0.00037014,20]
[393806471,1763014247832,-1000.0,0.00037014,20]
[393806472,1763014247842,-1000.0,0.00037014,20]
[393806473,1763014247852,-1000.0,0.00037014,20]
[393806474,1763014247861,-1000.0,0.00037014,20]
[393806475,1763014247870,-1000.0,0.00037014,20]
[393806476,1763014247879,-1100.0,0.00037014,20]
[393806477,1763014247889,-1100.0,0.00037014,20]
[393806478,1763014247899,-1100.0,0.00037014,20]
[393806479,1763014247909,-1100.0,0.00037014,20]
[393806480,1763014247919,-1100.0,0.00037014,20]
[393806481,1763014247928,-151.93318636,0.00037015,14]
[393806482,1763014247939,-171.00429189,0.00037015,14]
[393806483,1763014247948,-151.0,0.00037015,14]
[393806484,1763014247958,-151.0,0.00037015,14]
[393806485,1763014247971,-268.29464235,0.00037015,14]
[393806486,1763014247981,-332.0,0.00037015,14]
[393806487,1763014247990,-151.0,0.00037015,14]
[393806488,1763014248000,-332.0,0.00037015,14]
[393806489,1763014248011,-151.0,0.00037015,14]
[393806490,1763014248020,-332.0,0.00037015,14]
[393806491,1763014248029,-151.0,0.00037015,14]
[393806492,1763014248042,-151.0,0.00037015,14]
[393806493,1763014248054,-332.0,0.00037015,14]
[393806494,1763014248063,-332.0,0.00037015,14]
[393806495,1763014248073,-151.0,0.00037015,14]
[393806496,1763014248082,-151.0,0.00037015,14]
[393806497,1763014248092,-332.0,0.00037015,14]
[393806498,1763014248101,-151.0,0.00037015,14]
[393806499,1763014248110,-151.0,0.00037015,14]
[393806500,1763014248120,-151.0,0.00037015,14]
[393806501,1763014248129,-332.0,0.00037015,14]
[393806502,1763014248140,-151.0,0.00037015,14]